bitfinex-derivatives/quotes_SOLF0:USTF0_20251126
["timestamp","ask_amount","ask_price","bid_price","bid_amount"]
[1764162893704,9.83637747,135.82,135.75,8.1624]
[1764162893905,2.95,135.8,135.72,1.58]
[1764162894710,2.95,135.78,135.72,8.2142]
[1764162895017,2.95,135.76,135.75,0.05313127]
[1764162901011,9.5826,135.76,135.71,8.2147]
[1764162901216,2.95,135.75,135.71,8.2147]
[1764162901723,2.95,135.75,135.72,1.58]
[1764162901926,2.95,135.75,135.72,8.2143]
[1764162902124,2.95,135.75,135.72,8.26716567]
[1764162903521,0.04939257,135.77,135.73,1.58]
[1764162903718,0.04939257,135.77,135.76,5.74766558]
[1764162903917,2.95,135.81,135.77,1.58]
[1764162904219,11.75598245,135.9,135.81,3.17]
[1764162904420,6.6259,135.9,135.81,3.17]
[1764162904624,6.6259,135.9,135.82,7.33766558]
[1764162904923,0.05444019,135.87,135.85,0.05383191]
[1764162905130,107.23506558,135.9,135.79,7.33766558]
[1764162905430,6.6277,135.86,135.79,13.96836558]
[1764162906127,2.91,135.83,135.81,0.05014456]
[1764162909733,2.91,135.82,135.74,7.35766558]
[1764162910232,2.91,135.79,135.74,7.35766558]
[1764162910835,2.96321373,135.78,135.75,0.04795279]
[1764162916638,2.96321373,135.78,135.75,6.68075279]
[1764162916839,2.96321373,135.78,135.76,3.04]
[1764162917045,0.05321373,135.78,135.76,3.04]
[1764162917240,0.05321373,135.78,135.76,9.6722]
[1764162917549,3.16321373,135.78,135.76,9.6722]
[1764162920734,3.11,135.84,135.8,3.04]
[1764162920941,3.11,135.83,135.8,3.04]
[1764162921250,3.11,135.85,135.82,3.04]
[1764162921640,3.11,135.85,135.81,3.04]
[1764162921839,3.16172751,135.84,135.82,0.05436786]
[1764162922146,3.16337126,135.84,135.82,6.68366786]
[1764162923947,3.16337126,135.84,135.82,0.05436786]
[1764162924948,3.16337126,135.84,135.82,3.09436786]
[1764162925250,3.16337126,135.84,135.83,2.67063237]
[1764162927950,0.05337126,135.84,135.83,5.71063237]
[1764162929458,0.05337126,135.84,135.83,2.67063237]
[1764162930660,0.05337126,135.84,135.83,5.71063237]
[1764162931358,0.05337126,135.84,135.83,12.33963237]
[1764162933361,3.11,135.9,135.88,3.04]
[1764162933558,3.11,135.94,135.89,2.67063237]
[1764162933759,3.11,135.92,135.89,2.67063237]
[1764162934059,3.11,135.92,135.87,5.71063237]
[1764162934253,3.11,135.9,135.87,3.04]
[1764162934448,3.11,135.9,135.88,0.05379118]
[1764162936051,3.11,135.9,135.88,2.72442355]
[1764162940463,3.11,135.9,135.88,0.05379118]
[1764162950873,5.79063237,135.89,135.8,3.1]
[1764162951178,3.12,135.88,135.81,3.1]
[1764162951475,3.12,135.85,135.81,9.7298]
[1764162951868,3.16760946,135.84,135.82,0.0464934]
[1764162953481,3.12,135.83,135.82,0.0464934]
[1764162954778,3.16760946,135.84,135.82,0.0464934]
[1764162955873,0.04760946,135.84,135.82,0.0464934]
[1764162956073,3.16760946,135.84,135.82,3.1464934]
[1764162956671,3.16760946,135.84,135.82,9.7758934]
[1764162960984,3.16760946,135.84,135.82,0.0464934]
[1764162961683,3.12,135.82,135.75,5.77063237]
[1764162961888,3.12,135.8,135.75,3.1]
[1764162962274,3.12,135.78,135.74,3.1]
[1764162962583,0.04653071,135.77,135.75,3.15366251]
[1764162963288,0.04653071,135.77,135.75,9.78656251]
[1764162964284,0.04653071,135.77,135.76,3.1]
[1764162968891,3.12,135.83,135.79,2.99]
[1764162969975,0.05113556,135.82,135.8,0.04670716]
[1764162971883,3.24113556,135.82,135.8,0.04670716]
[1764162972788,3.24113556,135.82,135.8,3.04670716]
[1764162972986,0.05113556,135.82,135.81,3.0]
[1764162973983,0.05113556,135.82,135.81,9.6299]
[1764162977791,3.19,135.89,135.85,3.0]
[1764162977993,3.19,135.92,135.87,2.67063237]
[1764162978195,3.19,135.92,135.88,3.0]
[1764162978583,3.19,135.92,135.89,5.67063237]
[1764162978780,3.19,135.95,135.9,3.0]
[1764162979184,3.23825924,135.94,135.91,0.05173224]
[1764162979386,3.23825924,135.94,135.91,3.05173224]
[1764162979789,3.23825924,135.94,135.91,9.67673224]
[1764162979994,3.23825924,135.94,135.91,0.05173224]
[1764162980587,3.23825924,135.94,135.91,3.05173224]
[1764162981796,3.23825924,135.94,135.91,0.05173224]
[1764162985293,9.86195924,135.94,135.91,0.05173224]
[1764162985789,3.19,135.93,135.91,0.05173224]
[1764162988299,3.19,135.92,135.91,0.05173224]
[1764162989590,3.23825924,135.94,135.91,3.05173224]
[1764162990501,0.04825924,135.94,135.91,3.05173224]
[1764162991008,0.04825924,135.94,135.92,9.6245]
[1764162991202,0.04825924,135.94,135.93,3.0]
[1764162992703,3.19,135.98,135.94,3.0]
[1764162993691,3.24137041,135.97,135.95,6.67393689]
[1764162993889,3.24402418,135.97,135.95,0.05083689]
[1764162994902,9.86622418,135.97,135.95,0.05083689]
[1764162995108,3.19,135.96,135.89,3.0]
[1764162995507,3.19,135.98,135.94,6.6235]
[1764162996008,3.19,135.96,135.95,0.05581823]
[1764162997609,3.24214193,135.97,135.95,6.67891823]
[1764162997801,0.05214193,135.97,135.95,9.67891823]
[1764162999100,0.05214193,135.97,135.96,9.6226]
[1764162999299,3.19,136.03,135.97,3.0]
[1764163000108,3.19,136.03,136.0,3.0]
[1764163000311,0.04877654,136.03,136.0,3.05040134]
[1764163001308,2.99877654,136.03,136.0,3.05040134]
[1764163001508,0.04877654,136.03,136.0,3.05040134]
[1764163001906,0.04877654,136.03,136.02,3.07]
[1764163002208,0.04877654,136.03,136.01,9.6901]
[1764163002705,2.99877654,136.03,136.0,3.12040134]
[1764163003303,0.04877654,136.03,136.01,3.07]
[1764163004198,0.04877654,136.03,136.01,9.6901]
[1764163004719,2.99877654,136.03,136.0,0.05040134]
[1764163005211,2.99877654,136.03,136.0,3.12040134]
[1764163006012,2.99877654,136.03,136.0,0.05040134]
[1764163006711,9.5698,136.02,136.0,0.05040134]
[1764163006908,2.95,136.01,136.0,0.05040134]
[1764163014719,2.95,136.02,136.0,0.05040134]
[1764163016121,0.04877654,136.03,136.0,9.74100134]
[1764163016313,2.99877654,136.03,136.0,9.74100134]
[1764163016516,2.99877654,136.03,136.0,3.12040134]
[1764163016715,9.61807654,136.03,136.0,0.05040134]
[1764163016919,2.95,136.02,136.0,3.12040134]
[1764163017107,2.99877654,136.03,136.0,3.12040134]
[1764163017820,2.99877654,136.03,136.0,0.05040134]
[1764163018218,2.99877654,136.03,136.0,3.12040134]
[1764163018420,2.99877654,136.03,136.0,9.74100134]
[1764163018920,2.99877654,136.03,136.01,9.6901]
[1764163019519,2.99877654,136.03,136.01,6.6201]
[1764163019922,2.99877654,136.03,136.01,9.6901]
[1764163020626,2.99877654,136.03,136.0,9.74110134]
[1764163021224,2.95,136.02,136.0,0.05040134]
[1764163023529,2.99877654,136.03,136.0,9.74100134]
[1764163023738,2.99877654,136.03,136.0,3.12040134]
[1764163023928,0.04877654,136.03,136.0,3.12040134]
[1764163024125,0.04877654,136.03,136.02,3.07]
[1764163024324,2.99877654,136.03,136.01,6.6201]
[1764163025429,2.99877654,136.03,136.01,9.6901]
[1764163026331,2.99877654,136.03,136.02,6.6197]
[1764163027223,0.04877654,136.03,136.02,6.6197]
[1764163030229,0.04877654,136.03,136.02,9.6897]
[1764163031434,0.04877654,136.03,136.02,6.6197]
[1764163031628,2.99877654,136.03,136.02,6.6197]
[1764163032626,4.47877654,136.03,136.0,0.05040134]
[1764163032835,2.99877654,136.03,136.0,0.05040134]
[1764163033336,2.94,136.01,136.0,0.05040134]
[1764163033535,2.94,136.01,135.97,6.6218]
[1764163033536,2.94,136.01,135.95,3.07]
[1764163033727,9.5607,136.01,135.96,6.6226]
[1764163034038,2.94,136.0,135.96,6.6226]
[1764163034536,2.99368801,135.99,135.97,0.05295617]
[1764163034732,0.05368801,135.99,135.98,2.91]
[1764163038335,0.05368801,135.99,135.98,9.5316]
[1764163039328,0.05368801,135.99,135.97,2.96295617]
[1764163040644,0.05368801,135.99,135.98,6.6216]
[1764163040844,0.05368801,135.99,135.98,9.5316]
[1764163045137,6.6187,136.04,135.98,9.5316]
[1764163045138,2.94,136.05,136.02,2.91]
[1764163045338,116.44423509,136.11,136.02,2.91]
[1764163045339,9.76815811,136.08,136.02,2.91]
[1764163045542,2.94,136.08,136.02,2.91]
[1764163045747,2.94,136.08,136.04,6.6187]
[1764163046038,2.94,136.06,136.05,0.0537711]
[1764163051348,2.98782308,136.07,136.05,0.0537711]
[1764163051547,0.04782308,136.07,136.05,5.62629671]
[1764163051749,2.98782308,136.07,136.05,5.62629671]
[1764163052052,2.98782308,136.07,136.05,12.24439671]
[1764163053045,2.98782308,136.07,136.05,5.62629671]
[1764163054256,2.98782308,136.07,136.05,2.9637711]
[1764163054650,0.04782308,136.07,136.05,9.5818711]
[1764163055547,2.98782308,136.07,136.05,2.9637711]
[1764163058557,0.04782308,136.07,136.05,2.9637711]
[1764163059362,0.04782308,136.07,136.05,12.24439671]
[1764163060067,2.98782308,136.07,136.05,5.62629671]
[1764163060760,0.04782308,136.07,136.05,5.62629671]
[1764163061467,0.04782308,136.07,136.06,2.95]
[1764163063267,2.93782308,136.07,136.05,0.0537711]
[1764163063469,2.93782308,136.07,135.98,2.95]
[1764163063670,2.89,136.05,135.98,2.95]
[1764163064566,2.94228668,136.03,136.0,0.05435655]
[1764163064768,2.89,136.01,136.0,0.05435655]
[1764163068375,2.89,135.99,135.96,9.5726]
[1764163069278,2.9446607,135.99,135.96,0.04686443]
[1764163070580,2.9446607,135.99,135.96,2.99686443]
[1764163071777,0.0546607,135.99,135.97,2.95]
[1764163072371,0.0546607,135.99,135.97,9.5721]
[1764163073175,0.0546607,135.99,135.98,2.95]
[1764163073685,0.0546607,135.99,135.97,9.5721]
[1764163076083,2.9446607,135.99,135.96,0.04686443]
[1764163076291,2.9446607,135.99,135.96,2.99686443]
[1764163079400,2.9446607,135.99,135.96,0.04686443]
[1764163079986,2.89,135.97,135.96,0.04686443]
[1764163081294,2.89,135.96,135.92,9.5745]
[1764163081592,2.89,135.96,135.93,2.95]
[1764163081988,9.5127,135.96,135.92,9.5745]
[1764163082191,2.89,135.95,135.88,5.61252561]
[1764163082387,2.89,135.92,135.9,0.0467464]
[1764163082696,2.89,135.91,135.9,0.0467464]
[1764163084191,2.89,135.9,135.85,2.95]
[1764163084397,2.89,135.89,135.83,6.6286]
[1764163084586,9.5162,135.89,135.82,2.66252561]
[1764163084791,2.89,135.89,135.85,2.95]
[1764163085192,0.05550726,135.88,135.86,0.04867184]
[1764163085593,0.05550726,135.88,135.86,3.17867184]
[1764163086192,0.05550726,135.88,135.86,9.80607184]
[1764163086599,0.05550726,135.88,135.87,3.13]
[1764163091892,0.05550726,135.88,135.86,9.33859745]
[1764163092101,0.05550726,135.88,135.87,3.08]
[1764163098700,0.05550726,135.88,135.86,9.33859745]
[1764163098701,3.09,135.94,135.9,3.08]
[1764163099306,3.09,135.94,135.91,3.08]
[1764163099706,0.04810949,135.94,135.92,3.08]
[1764163102610,0.04810949,135.94,135.92,9.7044]
[1764163102806,3.09,136.0,135.93,5.74252561]
[1764163103111,3.09,136.0,135.96,5.74252561]
[1764163103314,3.09,136.0,135.97,3.08]
[1764163103906,3.13958284,136.0,135.97,3.13351852]
[1764163106115,3.13958284,136.0,135.97,0.05351852]
[1764163106716,9.76028284,136.0,135.97,0.05351852]
[1764163107112,3.09,135.99,135.97,0.05351852]
[1764163107318,3.09,135.98,135.97,0.05351852]
[1764163107505,3.09,135.98,135.92,3.08]
[1764163107819,3.09,135.97,135.91,3.08]
[1764163108715,9.76896228,135.95,135.93,0.05180163]
[1764163111025,3.09,135.94,135.93,0.05180163]
[1764163114410,3.14576228,135.95,135.93,3.13180163]
[1764163114612,0.05576228,135.95,135.93,3.13180163]
[1764163115324,0.05576228,135.95,135.93,9.75580163]
[1764163115520,0.05576228,135.95,135.94,3.08]
[1764163115723,3.09,136.01,135.94,3.08]
[1764163116022,3.09,136.01,135.96,3.08]
[1764163116723,3.1379512,136.0,135.97,3.12694612]
[1764163117222,0.0479512,136.0,135.98,3.08]
[1764163117422,3.1379512,136.0,135.97,9.74894612]
[1764163117818,3.1379512,136.0,135.97,3.12694612]
[1764163118215,111.94055475,136.07,135.97,3.12694612]
[1764163118216,6.82815811,136.07,135.99,4.16704276]
[1764163118415,3.09,136.06,136.03,3.08]
[1764163118926,3.09,136.11,136.03,3.08]
[1764163119227,0.05138444,136.08,136.06,3.12820239]
[1764163126333,0.05138444,136.08,136.06,9.74580239]
[1764163126636,0.05138444,136.08,136.07,2.87]
[1764163138839,104.14984757,136.16,136.07,2.87]
[1764163138840,2.98,136.2,136.12,2.87]
[1764163139236,2.98,136.18,136.09,2.87]
[1764163139442,102.8459,136.19,136.09,2.87]
[1764163139443,2.98,136.14,136.09,2.87]
[1764163139751,0.04721115,136.13,136.1,0.05211788]
[1764163139952,3.02721115,136.13,136.1,0.05211788]
[1764163141149,2.98,136.12,136.1,0.05211788]
[1764163141754,9.5953,136.11,136.1,0.05211788]
[1764163149460,9.57191115,136.13,136.1,3.23211788]
[1764163149752,0.04721115,136.13,136.1,3.23211788]
[1764163149955,0.04721115,136.13,136.1,9.84771788]
[1764163150151,0.04721115,136.13,136.12,3.18]
[1764163150559,2.91,136.18,136.13,3.18]
[1764163150854,2.91,136.19,136.14,3.18]
[1764163151259,2.91,136.19,136.16,3.03]
[1764163151450,0.04817455,136.19,136.16,3.07694364]
[1764163152253,3.18817455,136.19,136.16,3.07694364]
[1764163154356,0.04817455,136.19,136.16,3.07694364]
[1764163155158,0.04817455,136.19,136.16,13.84673493]
[1764163155351,0.04817455,136.19,136.17,3.03]
[1764163156652,0.04817455,136.19,136.17,9.6422]
[1764163157053,0.04817455,136.19,136.18,3.03]
[1764163161357,3.18817455,136.19,136.16,0.04694364]
[1764163162265,3.14,136.18,136.16,0.04694364]
[1764163163967,9.79967455,136.19,136.16,3.07694364]
[1764163164162,0.04817455,136.19,136.17,3.03]
[1764163164858,0.04817455,136.19,136.18,3.03]
[1764163168572,0.04817455,136.19,136.18,5.68582301]
[1764163169273,0.04817455,136.19,136.18,12.29772301]
[1764163171168,0.04817455,136.19,136.18,9.6419]
[1764163171371,3.18817455,136.19,136.16,5.73276665]
[1764163171871,3.18817455,136.19,136.17,3.03]
[1764163172078,0.04817455,136.19,136.17,3.03]
[1764163173877,3.14,136.24,136.18,3.03]
[1764163174668,13.2151,136.28,136.17,2.65582301]
[1764163174669,3.14,136.28,136.21,5.68582301]
[1764163174975,102.7744,136.29,136.23,0.04680659]
[1764163174976,3.14,136.25,136.23,0.04680659]
[1764163176876,9.7486,136.25,136.23,0.04680659]
[1764163177478,3.14,136.25,136.23,0.04680659]
[1764163178280,3.18635303,136.26,136.23,3.07680659]
[1764163178471,3.18635303,136.26,136.18,3.03]
[1764163178873,3.18635303,136.26,136.18,5.68582301]
[1764163179374,9.7495,136.23,136.19,3.03]
[1764163179567,3.19321287,136.22,136.2,0.04841145]
[1764163180780,9.80321287,136.22,136.2,0.04841145]
[1764163181276,9.7005,136.21,136.2,0.04841145]
[1764163186577,3.09,136.17,136.14,3.07]
[1764163187081,6.6121,136.18,136.15,3.07]
[1764163187279,9.7021,136.18,136.15,3.07]
[1764163187683,9.75545353,136.18,136.15,3.12088664]
[1764163187884,0.05335353,136.18,136.16,3.07]
[1764163189091,0.05335353,136.18,136.16,9.6829]
[1764163191378,3.14335353,136.18,136.15,0.05088664]
[1764163192893,3.09,136.16,136.15,0.05088664]
[1764163196583,9.7029,136.16,136.15,0.05088664]
[1764163196793,3.09,136.15,136.11,3.07]
[1764163197101,3.09,136.14,136.1,9.6855]
[1764163197697,0.04982249,136.13,136.11,0.05569292]
[1764163197895,3.13982249,136.13,136.11,0.05569292]
[1764163198093,3.09,136.12,136.11,0.05569292]
[1764163200389,3.13982249,136.13,136.11,0.05569292]
[1764163200597,0.04982249,136.13,136.11,3.12569292]
[1764163200899,3.13982249,136.13,136.11,0.05569292]
[1764163202300,3.09,136.12,136.11,0.05569292]
[1764163206295,3.09982249,136.13,136.11,0.05569292]
[1764163207205,9.71422249,136.13,136.11,0.05569292]
[1764163207403,3.05,136.12,136.11,0.05569292]
[1764163209005,3.09982249,136.13,136.11,0.05569292]
[1764163209509,0.04982249,136.13,136.11,3.03569292]
[1764163209900,2.65582301,136.17,136.11,3.03569292]
[1764163209901,3.05,136.18,136.12,2.98]
[1764163210105,3.05,136.18,136.14,9.5938]
[1764163210806,3.05,136.17,136.13,2.98]
[1764163211110,2.92927752,136.16,136.14,0.0517136]
[1764163212706,2.88,136.15,136.14,0.0517136]
[1764163215406,2.92927752,136.16,136.14,0.0517136]
[1764163217410,2.92927752,136.16,136.14,2.9417136]
[1764163218815,2.92927752,136.16,136.14,9.5555136]
[1764163219206,2.92927752,136.16,136.14,6.6655136]
[1764163220412,0.04927752,136.16,136.15,9.5034]
[1764163227911,2.88,136.21,136.19,2.89]
[1764163228116,2.88,136.21,136.18,12.15772301]
[1764163228302,9.4905,136.21,136.18,5.54582301]
[1764163228505,2.88,136.2,136.18,2.89]
[1764163228911,2.92732119,136.2,136.18,2.94209636]
[1764163229911,2.92732119,136.2,136.18,9.55399636]
[1764163231715,0.04732119,136.2,136.19,9.5014]
[1764163232716,2.92732119,136.2,136.18,2.94209636]
[1764163233020,0.04732119,136.2,136.18,2.94209636]
[1764163233320,0.04732119,136.2,136.19,9.5014]
[1764163234004,6.608,136.27,136.22,6.6098]
[1764163234211,2.88,136.3,136.25,2.89]
[1764163234411,2.88,136.29,136.25,2.89]
[1764163235012,2.88,136.28,136.26,0.0494921]
[1764163235213,2.88,136.28,136.26,0.04805093]
[1764163235420,2.93185673,136.28,136.26,0.04805093]
[1764163236513,0.05185673,136.28,136.26,9.54605093]
[1764163237021,0.05185673,136.28,136.27,2.89]
[1764163239422,0.05185673,136.28,136.27,7.0405322]
[1764163239624,2.88,136.34,136.3,2.89]
[1764163239825,2.88,136.36,136.3,2.89]
[1764163240118,2.88,136.36,136.31,2.89]
[1764163240319,2.88,136.36,136.33,2.89]
[1764163240621,0.04979183,136.36,136.33,2.93668611]
[1764163240818,0.04979183,136.36,136.33,9.54108611]
[1764163241023,0.04979183,136.36,136.34,2.89]
[1764163241717,3.07979183,136.36,136.33,0.04668611]
[1764163244324,3.03,136.35,136.33,0.04668611]
[1764163246226,0.04979183,136.36,136.33,9.78118611]
[1764163246726,3.07979183,136.36,136.33,9.78118611]
[1764163246922,3.07979183,136.36,136.33,0.04668611]
[1764163247522,3.07979183,136.36,136.33,3.17668611]
[1764163247825,3.07979183,136.36,136.33,0.04668611]
[1764163248131,3.07979183,136.36,136.33,6.65118611]
[1764163248330,3.07979183,136.36,136.33,0.04668611]
[1764163249622,3.07979183,136.36,136.33,6.65118611]
[1764163249827,3.07979183,136.36,136.33,3.17668611]
[1764163250728,3.07979183,136.36,136.33,9.78118611]
[1764163251931,3.07979183,136.36,136.33,3.17668611]
[1764163254534,3.07979183,136.36,136.33,0.04668611]
[1764163255129,9.68309183,136.36,136.33,0.04668611]
[1764163255327,3.03,136.35,136.33,0.04668611]
[1764163260833,3.03,136.33,136.25,3.13]
[1764163261029,3.03,136.33,136.22,4.1505322]
[1764163261030,3.03,136.31,136.22,3.13]
[1764163261427,3.03,136.27,136.21,6.6101]
[1764163261935,3.08460709,136.25,136.23,0.05138078]
[1764163262135,3.07722951,136.25,136.23,0.05138078]
[1764163264841,2.96091798,136.25,136.23,0.05138078]
[1764163267739,0.04722951,136.25,136.23,2.92138078]
[1764163268540,3.13722951,136.25,136.23,0.05138078]
[1764163268842,0.04722951,136.25,136.23,9.53078078]
[1764163269642,0.04722951,136.25,136.24,2.87]
[1764163274141,2.93722951,136.25,136.23,0.05138078]
[1764163274744,2.89,136.24,136.23,0.05138078]
[1764163276157,2.89,136.24,136.19,6.6113]
[1764163276758,2.89,136.22,136.18,3.13]
[1764163276956,2.89,136.22,136.15,110.1532322]
[1764163277257,2.94114106,136.2,136.17,3.18472392]
[1764163277650,2.94114106,136.2,136.17,0.05472392]
[1764163279361,2.94114106,136.2,136.17,6.66702392]
[1764163279746,2.94114106,136.2,136.17,0.05472392]
[1764163283964,2.94114106,136.2,136.17,6.66702392]
[1764163284347,2.94114106,136.2,136.18,6.6117]
[1764163284548,0.05114106,136.2,136.18,9.7417]
[1764163286561,0.05114106,136.2,136.19,3.13]
[1764163287053,0.05114106,136.2,136.18,9.7417]
[1764163288966,0.05114106,136.2,136.19,6.6114]
[1764163289664,0.05114106,136.2,136.18,3.13]
[1764163290566,0.05114106,136.2,136.18,5.78617883]
[1764163290765,0.05114106,136.2,136.19,3.13]
[1764163291158,0.05114106,136.2,136.19,5.78617883]
[1764163292869,0.05114106,136.2,136.19,12.39757883]
[1764163293070,2.94114106,136.2,136.17,0.05472392]
[1764163293774,2.89,136.18,136.17,0.05472392]
[1764163295670,2.89,136.19,136.17,0.05472392]
[1764163296571,0.05114106,136.2,136.17,5.84090275]
[1764163296962,2.94114106,136.2,136.17,5.84090275]
[1764163298065,2.94114106,136.2,136.17,2.71090275]
[1764163298271,2.89,136.19,136.17,0.05472392]
[1764163301472,3.06,136.18,136.17,0.05472392]
[1764163303174,3.11114106,136.2,136.17,0.05472392]
[1764163304072,3.11114106,136.2,136.17,6.66712392]
[1764163304576,9.72214106,136.2,136.17,0.05472392]
[1764163304777,3.06,136.19,136.17,0.05472392]
[1764163305169,3.06,136.18,136.17,0.05472392]
[1764163307981,3.06,136.18,136.11,3.08]
[1764163308179,3.06,136.18,136.13,5.73617883]
[1764163309083,3.06,136.16,136.14,0.05055636]
[1764163316292,3.06,136.15,136.14,0.05055636]
[1764163318500,3.11200016,136.17,136.14,0.05055636]
[1764163319400,3.06,136.16,136.14,0.05055636]
[1764163322088,3.06,136.15,136.14,0.05055636]
[1764163324290,9.6734,136.15,136.14,0.05055636]
[1764163327303,15.11325013,136.15,136.14,0.05055636]
[1764163330004,3.03,136.13,136.09,3.08]
[1764163330297,3.03,136.11,136.06,3.18]
[1764163330493,3.03,136.11,136.07,5.83617883]
[1764163330688,3.03,136.11,136.08,3.18]
[1764163331104,3.08092022,136.11,136.08,0.05527129]
[1764163331803,3.06,136.09,136.08,0.05527129]
[1764163332898,3.06,136.07,136.05,3.18]
[1764163333097,3.06,136.07,136.03,3.18]
[1764163333704,3.06,136.07,136.04,3.18]
[1764163334004,3.10700776,136.07,136.04,3.23489419]
[1764163334201,3.06,136.06,136.04,3.23489419]
[1764163335610,3.06,136.05,136.04,0.05489419]
[1764163336104,3.06,136.03,136.0,3.18]
[1764163336504,3.06,136.03,135.99,5.83617883]
[1764163337004,0.05101873,136.02,136.0,3.22827639]
[1764163338606,3.06,136.09,136.02,3.18]
[1764163338792,3.06,136.09,136.04,2.65617883]
[1764163339197,3.06,136.08,136.04,5.83617883]
[1764163339397,0.05628836,136.07,136.05,0.05305927]
[1764163339697,3.11628836,136.07,136.05,0.05305927]
[1764163340597,0.05628836,136.07,136.05,5.8892381]
[1764163340803,0.05628836,136.07,136.05,2.7092381]
[1764163341198,3.11628836,136.07,136.05,9.3273381]
[1764163342407,3.11628836,136.07,136.05,6.67115927]
[1764163345013,3.11628836,136.07,136.05,9.85115927]
[1764163346014,3.11628836,136.07,136.05,6.67115927]
[1764163347416,3.11628836,136.07,136.05,9.85115927]
[1764163347618,0.05628836,136.07,136.06,3.18]
[1764163348316,3.11628836,136.07,136.05,9.85115927]
[1764163349113,3.11628836,136.07,136.05,6.67115927]
[1764163350014,0.05628836,136.07,136.05,9.85115927]
[1764163350214,0.05628836,136.07,136.06,6.6178]
[1764163350405,3.11628836,136.07,136.06,6.6178]
[1764163356321,3.11628836,136.07,136.05,0.05305927]
[1764163356322,3.11628836,136.07,136.05,9.85125927]
[1764163357622,0.05628836,136.07,136.06,9.7978]
[1764163357922,3.11628836,136.07,136.06,6.6178]
[1764163358122,0.05628836,136.07,136.06,9.7978]
[1764163361831,3.13,136.13,136.09,2.98]
[1764163362126,3.13,136.12,136.09,2.98]
[1764163362826,3.18138501,136.12,136.09,3.03028789]
[1764163363028,6.66628501,136.12,136.09,0.05028789]
[1764163363221,3.13,136.11,136.09,0.05028789]
[1764163363618,0.05138501,136.12,136.04,2.98]
[1764163363619,3.13,136.1,136.04,2.98]
[1764163364523,3.13,136.08,136.04,2.98]
[1764163364724,3.13,136.06,136.05,0.05554172]
[1764163364925,3.17693414,136.07,136.05,0.05554172]
[1764163365327,3.17693414,136.07,136.05,3.03554172]
[1764163367831,9.79423414,136.07,136.05,3.03554172]
[1764163368024,9.79423414,136.07,136.05,0.05554172]
[1764163369335,9.79423414,136.07,136.05,3.03554172]
[1764163369737,6.66423414,136.07,136.05,3.03554172]
[1764163370229,9.79423414,136.07,136.05,3.03554172]
[1764163370435,3.13,136.06,136.05,0.05554172]
[1764163371736,3.17693414,136.07,136.05,0.05554172]
[1764163375030,9.79433414,136.07,136.05,0.05554172]
[1764163375232,3.13,136.06,136.05,0.05554172]
[1764163375434,8.58382028,136.06,136.05,0.05554172]
[1764163376624,3.13,136.05,136.02,9.5993]
[1764163376829,5.45382028,136.04,136.02,9.5993]
[1764163377029,3.13,136.05,136.03,2.98]
[1764163377323,5.45702476,136.04,136.03,2.98]
[1764163377730,3.13,136.03,135.97,2.98]
[1764163377939,3.13,136.01,135.97,2.98]
[1764163378134,3.13,135.99,135.97,2.98]
[1764163378529,3.13,136.02,135.97,2.98]
[1764163378725,3.13,136.0,135.98,0.04821911]
[1764163379033,5.44792756,136.01,135.98,0.04821911]
[1764163379034,3.13,135.99,135.98,0.04821911]
[1764163379233,8.52922335,135.99,135.98,0.04821911]
[1764163379433,3.13,135.99,135.98,0.04821911]
[1764163381829,8.52177462,135.99,135.98,0.04821911]
[1764163382032,3.13,135.99,135.98,0.04821911]
[1764163382844,8.51828866,135.99,135.98,0.04821911]
[1764163383142,3.13,135.99,135.98,0.04821911]
[1764163384243,3.13,135.97,135.94,2.98]
[1764163385037,3.17764496,135.97,135.94,3.01155295]
[1764163385437,2.99,135.96,135.94,0.03155295]
[1764163388838,2.99,135.95,135.94,0.03155295]
[1764163389341,2.99,135.94,135.9,2.93]
[1764163390246,2.99,135.94,135.9,9.5555]
[1764163390441,0.05614116,135.93,135.9,9.5555]
[1764163390635,3.04614116,135.93,135.9,6.6255]
[1764163390841,3.04614116,135.93,135.88,9.5563]